bitfinex/quotes_BTCUSD_20230106
["timestamp","ask_amount","ask_price","bid_price","bid_amount"]
[1673039197751,2.39929338,16915.0,16914.0,0.590896]
[1673039198001,2.33329338,16915.0,16914.0,0.590896]
[1673039198264,2.46829338,16915.0,16914.0,0.592896]
[1673039205292,2.46829338,16915.0,16914.0,0.002]
[1673039206304,2.45939338,16915.0,16914.0,0.002]
[1673039208186,1.9566246,16915.0,16913.0,0.591236]
[1673039208439,0.44651,16913.0,16911.0,0.60735931]
[1673039208688,2.05976099,16912.0,16911.0,0.60735931]
[1673039208944,1.8220831,16912.0,16911.0,0.60735931]
[1673039210173,1.8220831,16912.0,16911.0,0.62435931]
[1673039210174,2.37011202,16912.0,16911.0,0.62435931]
[1673039210425,2.35511202,16912.0,16911.0,0.01605531]
[1673039210664,2.49011202,16912.0,16911.0,0.01805531]
[1673039211885,2.66501202,16912.0,16911.0,0.01805531]
[1673039213642,2.14101202,16912.0,16911.0,0.01805531]
[1673039213887,2.66391202,16912.0,16911.0,0.01805531]
[1673039215173,2.6085106,16912.0,16911.0,5.31e-06]
[1673039215430,3.152039,16912.0,16911.0,5.31e-06]
[1673039216099,2.6744115,16912.0,16911.0,5.31e-06]
[1673039217030,2.1515115,16912.0,16911.0,5.31e-06]
[1673039217269,2.6740115,16912.0,16911.0,5.31e-06]
[1673039217602,3.2653075,16912.0,16911.0,5.31e-06]
[1673039218050,2.6740115,16912.0,16911.0,5.31e-06]
[1673039218534,2.4995115,16912.0,16911.0,5.31e-06]
[1673039220183,1.9559831,16912.0,16911.0,5.31e-06]
[1673039221340,1.9559831,16912.0,16910.0,0.01283002]
[1673039221787,1.64656385,16911.0,16910.0,0.01283002]
[1673039222783,1.64656385,16911.0,16910.0,0.01483002]
[1673039223242,1.64656385,16911.0,16910.0,0.01283002]
[1673039224551,1.64656385,16911.0,16910.0,0.60419602]
[1673039225077,1.78056385,16911.0,16910.0,0.60619602]
[1673039226533,1.78056385,16911.0,16910.0,0.90619602]
[1673039226789,1.78056385,16911.0,16910.0,0.60619602]
[1673039227003,1.78056385,16911.0,16910.0,0.01483002]
[1673039227249,2.37844447,16911.0,16910.0,0.01483002]
[1673039228019,2.55334447,16911.0,16910.0,0.01483002]
[1673039228262,2.2282183,16911.0,16910.0,2e-08]
[1673039228511,3.16910857,16911.0,16910.0,2e-08]
[1673039229539,2.9943493,16911.0,16910.0,2e-08]
[1673039229787,2.13026385,16911.0,16910.0,2e-08]
[1673039230036,2.74819698,16911.0,16910.0,2e-08]
[1673039231807,2.57399698,16911.0,16910.0,2e-08]
[1673039233548,1.95606385,16911.0,16910.0,2e-08]
[1673039233787,2.9193767,16911.0,16910.0,2e-08]
[1673039234036,3.5107077,16911.0,16910.0,2e-08]
[1673039234541,3.68546697,16911.0,16910.0,2e-08]
[1673039237085,3.95013815,16911.0,16910.0,2e-08]
[1673039237826,4.54146915,16911.0,16910.0,2e-08]
[1673039238321,4.54146915,16911.0,16908.0,0.01648212]
[1673039238565,0.1749,16909.0,16908.0,0.01648212]
[1673039238815,1.64686622,16909.0,16908.0,0.01648212]
[1673039239825,1.66186622,16909.0,16908.0,0.03048212]
[1673039241556,2.25743157,16909.0,16908.0,2.12e-06]
[1673039241812,1.83676622,16909.0,16908.0,2.12e-06]
[1673039242073,2.37336207,16909.0,16908.0,2.12e-06]
[1673039244038,1.83676622,16909.0,16908.0,2.12e-06]
[1673039244795,2.42325575,16909.0,16908.0,2.12e-06]
[1673039245277,2.59801502,16909.0,16908.0,2.12e-06]
[1673039245772,2.42325575,16909.0,16908.0,2.12e-06]
[1673039247271,1.83676622,16909.0,16908.0,2.12e-06]
[1673039248250,2.01152549,16909.0,16908.0,2.12e-06]
[1673039248496,1.83676622,16909.0,16908.0,2.12e-06]
[1673039248761,2.01152549,16909.0,16908.0,2.12e-06]
[1673039249020,1.83676622,16909.0,16908.0,2.12e-06]
[1673039250566,2.21842711,16909.0,16908.0,2.12e-06]
[1673039250818,2.39318638,16909.0,16908.0,2.12e-06]
[1673039252629,2.01152549,16909.0,16908.0,2.12e-06]
[1673039255907,3.20911591,16909.0,16908.0,2.12e-06]
[1673039256676,4.41700787,16909.0,16906.0,0.60448089]
[1673039256935,0.3498,16907.0,16906.0,0.30448089]
[1673039257187,1.78436764,16907.0,16906.0,0.30448089]
[1673039257955,2.99861053,16907.0,16906.0,0.30548089]
[1673039258204,2.38983764,16907.0,16906.0,0.30548089]
[1673039258457,3.06695241,16907.0,16906.0,0.30548089]
[1673039258707,17.24205241,16907.0,16906.0,0.30548089]
[1673039258970,17.81952241,16907.0,16906.0,0.30448089]
[1673039259232,17.95552241,16907.0,16906.0,0.30448089]
[1673039259486,17.81952241,16907.0,16906.0,0.30448089]
[1673039259734,17.95352241,16907.0,16906.0,0.30448089]
[1673039260001,17.81952241,16907.0,16906.0,0.30448089]
[1673039260239,17.95552241,16907.0,16906.0,0.30448089]
[1673039262270,17.27840764,16907.0,16906.0,0.30448089]
[1673039262528,17.87228477,16907.0,16906.0,0.30448089]
[1673039262789,18.68230286,16907.0,16906.0,0.30448089]
[1673039263059,17.91118477,16907.0,16906.0,0.30448089]
[1673039263332,17.45330764,16907.0,16906.0,0.30448089]
[1673039263556,18.12240055,16907.0,16906.0,0.30448089]
[1673039263775,17.45330764,16907.0,16906.0,0.30448089]
[1673039264294,17.62862691,16907.0,16906.0,0.30448089]
[1673039264798,18.21239612,16907.0,16906.0,0.30448089]
[1673039265015,18.07639612,16907.0,16906.0,0.30448089]
[1673039265234,18.21239612,16907.0,16906.0,0.30448089]
[1673039265767,14.02892519,16905.0,16904.0,0.01901202]
[1673039266019,15.63661359,16905.0,16904.0,0.01901202]
[1673039266992,15.77161359,16905.0,16904.0,0.01901202]
[1673039267529,16.44482498,16905.0,16904.0,0.01901202]
[1673039268038,16.52137951,16905.0,16904.0,0.01901202]
[1673039268278,16.59920337,16905.0,16904.0,0.01901202]
[1673039268780,16.52137951,16905.0,16904.0,0.01901202]
[1673039271960,15.84816812,16905.0,16904.0,2.02e-06]
[1673039272149,0.46352,16903.0,16902.0,0.01998585]
[1673039272411,1.8968084,16903.0,16902.0,0.01998585]
[1673039272667,15.92502187,16903.0,16902.0,0.01998585]
[1673039273182,16.48370146,16903.0,16902.0,0.01998585]
[1673039273680,16.56070146,16903.0,16902.0,0.01998585]
[1673039274199,16.56070146,16903.0,16902.0,0.05562519]
[1673039274673,16.56070146,16903.0,16902.0,0.64727019]
[1673039277371,16.56070146,16903.0,16902.0,0.94727019]
[1673039277877,16.48370146,16903.0,16902.0,0.94727019]
[1673039278130,16.48870146,16903.0,16902.0,0.94727019]
[1673039279635,16.48870146,16903.0,16902.0,0.94927019]
[1673039279893,16.04419146,16903.0,16902.0,0.94927019]
[1673039280150,14.05222347,16903.0,16902.0,1.60269461]
[1673039281442,14.87858887,16903.0,16902.0,1.60269461]
[1673039282182,12.42551886,16902.0,16901.0,1.23317341]
[1673039282442,12.42551886,16902.0,16901.0,2.45217275]
[1673039283397,12.42551886,16902.0,16901.0,2.75217275]
[1673039283649,12.42551886,16902.0,16901.0,2.25217275]
[1673039283898,12.44151886,16902.0,16901.0,2.25217275]
[1673039284411,12.44151886,16902.0,16901.0,2.42905002]
[1673039285664,12.44151886,16902.0,16901.0,2.25207672]
[1673039285927,12.44151886,16902.0,16901.0,2.6061984]
[1673039286402,12.44151886,16902.0,16901.0,2.42905002]
[1673039286915,9.99631276,16901.0,16900.0,0.64179796]
[1673039287165,9.99631276,16901.0,16900.0,2.70012796]
[1673039287416,9.96067342,16901.0,16900.0,2.70012796]
[1673039287682,9.96067342,16901.0,16900.0,2.72895693]
[1673039287950,9.97567342,16901.0,16900.0,2.72895693]
[1673039288462,9.97567342,16901.0,16900.0,3.02895693]
[1673039288712,9.97567342,16901.0,16900.0,2.32895693]
[1673039291171,7.63100477,16900.0,16899.0,1.20788397]
[1673039291420,7.63100477,16900.0,16899.0,3.43988397]
[1673039291669,7.63100477,16900.0,16899.0,3.29511294]
[1673039292385,7.63100477,16900.0,16899.0,3.65689236]
[1673039292623,7.64500477,16900.0,16899.0,3.65689236]
[1673039294320,7.64500477,16900.0,16899.0,4.18807201]
[1673039298084,7.64500477,16900.0,16899.0,4.01317201]
[1673039300346,7.64500477,16900.0,16899.0,4.04991078]
[1673039300607,8.45351613,16900.0,16899.0,4.01707211]
[1673039301363,8.43951613,16900.0,16899.0,4.01707211]
[1673039301611,8.45351613,16900.0,16899.0,4.01707211]
[1673039301854,8.43951613,16900.0,16899.0,3.31707211]
[1673039302139,8.45451613,16900.0,16899.0,3.31707211]
[1673039302384,9.12172523,16900.0,16899.0,2.37048965]
[1673039302640,9.12172523,16900.0,16899.0,2.5190827]
[1673039303124,5.11192207,16899.0,16898.0,0.64315674]
[1673039303371,5.91709173,16899.0,16898.0,1.65152874]
[1673039303620,5.91709173,16899.0,16898.0,1.95152874]
[1673039304638,5.93109173,16899.0,16898.0,1.95152874]
[1673039305385,5.93109173,16899.0,16898.0,1.97714419]
[1673039305636,5.12592207,16899.0,16898.0,1.97714419]
[1673039307168,5.11192207,16899.0,16898.0,1.97714419]
[1673039307427,5.12192207,16899.0,16898.0,1.97714419]
[1673039311032,5.12192207,16899.0,16898.0,2.33175588]
[1673039314008,5.1922193,16899.0,16898.0,2.33175588]
[1673039314746,5.1922193,16899.0,16898.0,1.97714419]
[1673039315015,5.1922193,16899.0,16898.0,2.33172606]
[1673039315270,2.77519601,16898.0,16897.0,8.11672269]
[1673039315545,3.58298207,16898.0,16897.0,9.40854369]
[1673039315800,2.74958056,16898.0,16897.0,9.40854369]
[1673039316049,2.74958056,16898.0,16897.0,9.43415914]
[1673039316306,2.74958056,16898.0,16897.0,9.73415914]
[1673039316553,2.76358056,16898.0,16897.0,9.73415914]
[1673039317070,2.76358056,16898.0,16897.0,2.23415914]
[1673039320270,2.76358056,16898.0,16897.0,1.53415914]
[1673039320999,1.21542142,16897.0,16896.0,9.98930362]
[1673039321251,1.21542142,16897.0,16896.0,11.28115962]
[1673039321494,1.21542142,16897.0,16896.0,11.30106512]
[1673039322032,1.21542142,16897.0,16896.0,11.89292112]
[1673039322275,1.22942142,16897.0,16896.0,12.25470054]
[1673039323314,1.22942142,16897.0,16896.0,11.65470054]
[1673039326574,0.014,16897.0,16896.0,10.43927912]
[1673039327547,0.014,16897.0,16896.0,11.03112512]
[1673039331940,0.014,16897.0,16896.0,10.49994547]
[1673039332513,0.88091805,16899.0,16896.0,9.79994547]
[1673039332786,0.88076805,16899.0,16898.0,0.44329708]
[1673039333038,0.88076805,16899.0,16898.0,1.92686908]
[1673039334054,0.89576805,16899.0,16898.0,1.92686908]
[1673039335173,0.89576805,16899.0,16898.0,2.28150674]
[1673039335853,0.89576805,16899.0,16898.0,2.10418791]
[1673039336883,0.89576805,16899.0,16898.0,2.28150674]
[1673039337138,0.89576805,16899.0,16898.0,2.54759988]
[1673039337399,0.89576805,16899.0,16898.0,2.28150674]
[1673039337863,0.89576805,16899.0,16898.0,2.54759963]
[1673039338359,0.89576805,16899.0,16898.0,2.28150674]
[1673039343167,0.89576805,16899.0,16898.0,2.54782725]
[1673039343664,0.89576805,16899.0,16898.0,2.10453017]
[1673039344940,0.89576805,16899.0,16898.0,2.54782725]
[1673039345190,0.88076805,16899.0,16898.0,2.28150674]
[1673039345696,0.89576805,16899.0,16898.0,2.28150674]
[1673039346715,0.89576805,16899.0,16898.0,1.92686908]
[1673039346976,0.89576805,16899.0,16898.0,2.28191826]
[1673039347694,0.89566778,16899.0,16898.0,2.28191826]
[1673039348749,0.89566778,16899.0,16898.0,1.92686908]
[1673039349478,0.08519696,16899.0,16898.0,1.50163741]
[1673039349962,0.89540756,16899.0,16898.0,1.50163741]
[1673039351231,0.89540756,16899.0,16898.0,1.94543399]
[1673039351954,0.08519696,16899.0,16898.0,1.94543399]
[1673039353855,0.08519696,16899.0,16898.0,1.92736858]
[1673039354237,0.08519696,16899.0,16898.0,1.94543399]
[1673039354498,0.08519696,16899.0,16898.0,2.20163741]
[1673039356568,0.08519696,16899.0,16898.0,2.73281706]
[1673039356569,0.08494196,16899.0,16898.0,2.73281706]
[1673039362386,0.08494196,16899.0,16898.0,2.20163741]
[1673039362637,0.08494196,16899.0,16898.0,2.38523741]
[1673039364146,0.08494196,16899.0,16898.0,3.38523741]
[1673039364677,0.08494196,16899.0,16898.0,3.367172]
[1673039365180,0.08494196,16899.0,16898.0,3.38523741]
[1673039366210,0.08494196,16899.0,16898.0,4.17918508]
[1673039367225,0.08494196,16899.0,16898.0,4.15611967]
[1673039367726,0.08494196,16899.0,16898.0,4.15601767]
[1673039368722,0.08494196,16899.0,16898.0,3.98091767]
[1673039368971,3.4824106,16902.0,16899.0,0.4]
[1673039369217,0.00015,16901.0,16900.0,2.66686]
[1673039369958,0.00015,16901.0,16900.0,3.1098555]
[1673039370209,0.00015,16901.0,16900.0,3.8098555]
[1673039370455,0.00015,16901.0,16900.0,3.8078555]
[1673039370724,0.01,16901.0,16900.0,3.8078555]
[1673039371239,0.01,16901.0,16900.0,3.82592091]
[1673039371996,0.01,16901.0,16900.0,5.17687308]
[1673039372268,0.00320516,16905.0,16900.0,5.83021308]
[1673039372510,0.00015,16903.0,16902.0,0.1748]
[1673039372780,0.00015,16903.0,16902.0,3.54138]
[1673039373046,0.00015,16903.0,16902.0,3.81768448]
[1673039373575,8.34e-05,16903.0,16902.0,3.83574989]
[1673039373579,8.34e-05,16903.0,16902.0,3.81768448]
[1673039373838,0.0130834,16903.0,16902.0,4.22377427]
[1673039374389,0.013,16903.0,16902.0,4.22377427]
[1673039374650,0.013,16903.0,16902.0,4.21527427]
[1673039375159,0.013,16903.0,16902.0,3.86118448]
[1673039375412,0.013,16903.0,16902.0,3.41858]
[1673039375932,0.013,16903.0,16902.0,5.22102767]
[1673039376177,0.013,16903.0,16902.0,5.39512767]
[1673039376435,0.00335516,16905.0,16902.0,5.69512767]
[1673039376695,0.00335516,16905.0,16904.0,0.61940062]
[1673039376951,0.00335516,16905.0,16904.0,3.80864182]
[1673039377967,0.00335516,16905.0,16904.0,4.78814829]
[1673039378232,0.01520516,16905.0,16904.0,5.11583409]
[1673039378500,1.6e-07,16905.0,16904.0,5.15037668]
[1673039378731,0.00330436,16906.0,16904.0,12.94551362]
[1673039378974,0.00330436,16906.0,16905.0,2.51851993]
[1673039379221,0.00330436,16906.0,16905.0,4.40159993]
[1673039379487,0.00330436,16906.0,16905.0,5.17226358]
[1673039379780,0.00669636,16906.0,16905.0,5.18076358]
[1673039380248,0.00368106,16907.0,16905.0,5.27682899]
[1673039380503,0.01,16906.0,16905.0,5.27682899]
[1673039381064,0.00368106,16907.0,16905.0,5.02194259]
[1673039381235,0.00368106,16907.0,16906.0,0.18510622]
[1673039381464,0.00368106,16907.0,16906.0,2.06811622]
[1673039381721,0.00368106,16907.0,16906.0,2.38618163]
[1673039382234,0.01368106,16907.0,16906.0,2.19151]
[1673039382487,0.02368106,16907.0,16906.0,2.26951]
[1673039384264,0.02368106,16907.0,16906.0,2.28757541]
[1673039388417,0.02361446,16907.0,16906.0,2.28757541]
[1673039389190,0.02361446,16907.0,16906.0,1.58757541]
[1673039390221,0.02361446,16907.0,16906.0,2.28757541]
[1673039394454,0.02361446,16907.0,16906.0,2.26951]
[1673039394979,0.02361446,16907.0,16906.0,2.44611622]
[1673039395218,0.00351711,16908.0,16906.0,3.0581293]
[1673039395464,0.00351711,16908.0,16907.0,0.3]
[1673039395735,0.00351711,16908.0,16907.0,1.48294]
[1673039395995,0.00351711,16908.0,16907.0,2.20100541]
[1673039397035,0.01151711,16908.0,16907.0,3.29800541]
[1673039399843,0.01151711,16908.0,16907.0,2.29800541]
[1673039402928,0.00244811,16908.0,16907.0,2.29800541]
[1673039405408,0.00244811,16908.0,16907.0,2.47461163]
[1673039405881,0.00244811,16908.0,16907.0,2.29800541]
[1673039406101,0.00244811,16908.0,16907.0,2.47461163]
[1673039406342,0.00244811,16908.0,16907.0,2.45654622]
[1673039407292,0.00244811,16908.0,16907.0,2.72145577]
[1673039408380,0.00244811,16908.0,16907.0,2.73952118]
[1673039408890,0.00244811,16908.0,16907.0,2.91635492]
[1673039409881,0.00244811,16908.0,16907.0,2.73985061]
[1673039410825,0.00244811,16908.0,16907.0,2.91635492]
[1673039412109,0.00244811,16908.0,16907.0,2.74000797]
[1673039412370,0.00244811,16908.0,16907.0,2.72194256]
[1673039412900,0.00244811,16908.0,16907.0,2.89828951]
[1673039413585,0.00244811,16908.0,16907.0,3.34092638]
[1673039413806,0.00244811,16908.0,16907.0,3.34092664]
[1673039414049,0.00244811,16908.0,16907.0,2.89913069]
[1673039414292,0.00244811,16908.0,16907.0,2.72286152]
[1673039414293,1.22911837,16908.0,16907.0,2.72286152]
[1673039414829,0.17754811,16908.0,16907.0,2.9171961]
[1673039415852,0.98130837,16908.0,16907.0,2.6171961]
[1673039416074,0.98130837,16908.0,16907.0,1.74105368]
[1673039416353,0.98130837,16908.0,16907.0,1.72298827]
[1673039417101,1.69339605,16908.0,16907.0,1.45723754]
[1673039417359,1.49655879,16908.0,16907.0,1.44723754]
[1673039417849,0.88963579,16908.0,16907.0,1.44723754]
[1673039418353,0.88963579,16908.0,16907.0,1.74723754]
[1673039419082,0.88963579,16908.0,16907.0,2.01298827]
[1673039419376,0.35274811,16908.0,16907.0,2.01298827]
[1673039419632,0.35274811,16908.0,16907.0,1.74723754]
[1673039419877,1.15650837,16908.0,16907.0,1.74723754]
[1673039423626,1.15650837,16908.0,16907.0,1.56994]
[1673039424902,1.15650837,16908.0,16907.0,2.03099125]
[1673039426171,1.15650837,16908.0,16907.0,2.73099125]
[1673039427433,1.15650837,16908.0,16907.0,2.71292584]
[1673039427694,1.15650837,16908.0,16907.0,1.74717511]
[1673039428461,1.15650837,16908.0,16907.0,1.76524052]
[1673039429459,1.15650837,16908.0,16907.0,1.58800541]
[1673039429719,2.42935802,16908.0,16907.0,1.56994]
[1673039430227,1.82243502,16908.0,16907.0,1.26994]
[1673039430482,1.82243502,16908.0,16907.0,1.56994]
[1673039430989,1.82243502,16908.0,16907.0,1.26994]
[1673039432015,1.82243502,16908.0,16907.0,1.56994]
[1673039432275,1.82243502,16908.0,16907.0,1.26994]
[1673039432276,1.01867476,16908.0,16907.0,1.26994]
[1673039433245,2.42935802,16908.0,16907.0,1.26994]
[1673039433491,2.42935802,16908.0,16907.0,1.56994]
[1673039433745,1.01867476,16908.0,16907.0,1.56994]
[1673039436735,1.62559776,16908.0,16907.0,1.56994]
[1673039436958,1.62559776,16908.0,16907.0,9.06994]
[1673039437178,1.01867476,16908.0,16907.0,9.06994]
[1673039438922,1.01867476,16908.0,16907.0,1.56994]
[1673039439180,1.62559776,16908.0,16907.0,1.56994]
[1673039439441,2.42935802,16908.0,16907.0,1.56994]
[1673039439691,1.01867476,16908.0,16907.0,1.56994]
[1673039440702,1.01858192,16908.0,16907.0,1.56994]
[1673039441714,1.19378192,16908.0,16907.0,1.56994]
[1673039446332,1.19378192,16908.0,16907.0,1.30874]
[1673039447095,0.52785527,16908.0,16907.0,1.30874]
[1673039447641,1.33021223,16908.0,16907.0,1.30874]
[1673039453281,1.33021223,16908.0,16907.0,1.48597511]
[1673039455544,1.33021223,16908.0,16907.0,1.75172584]
[1673039457290,1.93713523,16908.0,16907.0,1.75172584]
[1673039457765,1.33021223,16908.0,16907.0,1.75172584]
[1673039459208,1.15511223,16908.0,16907.0,1.75172584]
[1673039459679,1.15511223,16908.0,16907.0,1.75166022]
[1673039459927,1.15511223,16908.0,16907.0,1.48590949]
[1673039460196,1.76203523,16908.0,16907.0,1.48590949]
[1673039460692,1.15511223,16908.0,16907.0,1.48590949]
[1673039463211,1.15511223,16908.0,16907.0,1.76972563]
[1673039467493,1.15511223,16908.0,16907.0,1.94593048]
[1673039469666,1.15511223,16908.0,16907.0,1.75191794]
[1673039475752,1.15511223,16908.0,16907.0,2.12343435]
[1673039476005,0.35275527,16908.0,16907.0,1.94593048]
[1673039480489,1.15511223,16908.0,16907.0,1.94593048]
[1673039481593,1.15500265,16908.0,16907.0,1.94593048]
[1673039481825,0.97980265,16908.0,16907.0,1.94593048]
[1673039486863,0.97980265,16908.0,16907.0,1.76999524]
[1673039490632,1.58672565,16908.0,16907.0,1.76999524]
[1673039491117,0.97980265,16908.0,16907.0,1.76999524]
[1673039494354,1.58672565,16908.0,16907.0,1.76999524]
[1673039494601,0.97980265,16908.0,16907.0,1.76999524]
[1673039495639,0.97980265,16908.0,16907.0,1.94593048]
[1673039496389,0.97980265,16908.0,16907.0,1.76999969]
[1673039497090,1.58672565,16908.0,16907.0,1.20424896]
[1673039497558,1.58672565,16908.0,16907.0,1.02673979]
[1673039497559,0.17744569,16908.0,16907.0,1.02673979]
[1673039498746,0.17744569,16908.0,16907.0,1.20424896]
[1673039498962,0.17744569,16908.0,16907.0,1.50424896]
[1673039501106,0.97973091,16908.0,16907.0,1.50424896]
[1673039501846,1.15493091,16908.0,16907.0,1.50424896]
[1673039502842,0.80453091,16908.0,16907.0,1.50424896]
[1673039503085,0.80453091,16908.0,16907.0,1.48618355]
[1673039503348,0.80453091,16908.0,16907.0,1.75193428]
[1673039503591,0.80453091,16908.0,16907.0,1.48618355]
[1673039504082,0.80453091,16908.0,16907.0,1.75193428]
[1673039504334,0.80453091,16908.0,16907.0,1.76999969]
[1673039504814,1.15343091,16908.0,16907.0,1.76999969]
[1673039505081,0.35114569,16908.0,16907.0,1.76999969]
[1673039505339,1.15350265,16908.0,16907.0,1.76999969]
[1673039505831,1.15338509,16908.0,16907.0,1.76999969]
[1673039506607,0.35102813,16908.0,16907.0,1.76999969]
[1673039506859,1.15338509,16908.0,16907.0,1.76999969]
[1673039507108,0.35102813,16908.0,16907.0,1.76999969]
[1673039507364,0.35102813,16908.0,16907.0,2.12343965]
[1673039507610,0.35102813,16908.0,16907.0,2.54593048]
[1673039509595,0.35102813,16908.0,16907.0,2.70532265]
[1673039509845,1.15331353,16908.0,16907.0,2.35188269]
[1673039510097,0.35102813,16908.0,16907.0,2.35188269]
[1673039510387,0.35102813,16908.0,16907.0,2.37012197]
[1673039511889,0.17722813,16908.0,16907.0,2.37012197]
[1673039512833,0.17722813,16908.0,16907.0,2.72356193]
[1673039513089,0.17722813,16908.0,16907.0,2.54610435]
[1673039514377,0.17722813,16908.0,16907.0,2.37011893]
[1673039515544,0.97944161,16908.0,16907.0,2.37011893]
[1673039518354,0.97944161,16908.0,16907.0,2.1043682]
[1673039518836,0.97944161,16908.0,16907.0,2.37011893]
[1673039521578,0.17722813,16908.0,16907.0,2.54610435]
[1673039525903,0.17716781,16908.0,16907.0,2.72355947]
[1673039526688,0.97923856,16908.0,16907.0,2.72355947]
[1673039527136,0.97923856,16908.0,16907.0,2.37011951]
[1673039528842,0.17716781,16908.0,16907.0,2.54610435]
[1673039530358,0.17716781,16908.0,16907.0,2.72214957]
[1673039530607,0.17716781,16908.0,16907.0,2.98831595]
[1673039530829,0.17716781,16908.0,16907.0,2.72214957]
[1673039531329,0.27988667,16908.0,16907.0,2.72214957]
[1673039531582,1.08224363,16908.0,16907.0,2.54651559]
[1673039532097,0.27988667,16908.0,16907.0,2.54651559]
[1673039532361,1.08224363,16908.0,16907.0,2.54651559]
[1673039534139,0.27988667,16908.0,16907.0,2.72214957]
[1673039534639,0.27988667,16908.0,16907.0,2.9882881]
[1673039534867,0.27988667,16908.0,16907.0,2.72214957]
[1673039535335,0.27988667,16908.0,16907.0,2.98828188]
[1673039535844,0.27988667,16908.0,16907.0,2.54648593]
[1673039537932,0.27988667,16908.0,16907.0,2.52824665]
[1673039538447,0.27988667,16908.0,16907.0,2.54648593]
[1673039539146,0.27988667,16908.0,16907.0,2.54148593]
[1673039540160,1.08202806,16908.0,16907.0,2.71892985]
[1673039540653,1.08202806,16908.0,16907.0,2.36548989]
[1673039541436,2.2891531,16908.0,16907.0,1.76548989]
[1673039541672,1.66211171,16908.0,16907.0,1.76548989]
[1673039541916,1.8570427,16908.0,16907.0,1.76548989]
[1673039543178,1.05518871,16908.0,16907.0,1.76548989]
[1673039543428,0.45498667,16908.0,16907.0,1.76548989]
[1673039543642,0.45498667,16908.0,16907.0,1.94148593]
[1673039544691,1.25727177,16908.0,16907.0,1.94148593]
[1673039547376,1.25727177,16908.0,16907.0,2.11896213]
[1673039548128,1.25727177,16908.0,16907.0,1.76552217]
[1673039551027,1.25727177,16908.0,16907.0,2.11896213]
[1673039551202,1.25727177,16908.0,16907.0,2.11895319]
[1673039552363,1.25727177,16908.0,16907.0,1.94148593]
[1673039553602,0.45498667,16908.0,16907.0,1.94148593]
[1673039554357,0.45498667,16908.0,16907.0,2.38328188]
[1673039554598,1.25734363,16908.0,16907.0,1.94148593]
[1673039555564,0.45498667,16908.0,16907.0,1.94148593]
[1673039555817,0.45498667,16908.0,16907.0,2.11714957]
[1673039559579,0.45498667,16908.0,16907.0,1.76370961]
[1673039560090,0.45498667,16908.0,16907.0,2.11859163]
[1673039560331,0.45498667,16908.0,16907.0,1.76370961]
[1673039561144,0.45498667,16908.0,16907.0,2.11859126]
[1673039561391,0.45489178,16908.0,16907.0,2.11859126]
[1673039561894,0.27979178,16908.0,16907.0,2.11859126]
[1673039563158,0.27979178,16908.0,16907.0,1.76370961]
[1673039564852,0.27979178,16908.0,16907.0,2.11855229]
[1673039565611,0.27979178,16908.0,16907.0,2.11855271]
[1673039566101,0.27979178,16908.0,16907.0,1.76370961]
[1673039566839,0.27979178,16908.0,16907.0,2.11853865]
[1673039568632,0.27979178,16908.0,16907.0,1.76370961]
[1673039572502,0.27979178,16908.0,16907.0,1.74547033]
[1673039573249,0.27979178,16908.0,16907.0,1.76372466]
[1673039573766,0.27979178,16908.0,16907.0,2.11852404]
[1673039574244,1.08214874,16908.0,16907.0,2.11852404]
[1673039574740,0.27979178,16908.0,16907.0,2.11852404]
[1673039575008,0.27979178,16908.0,16907.0,1.67672809]
[1673039575265,0.27979178,16908.0,16907.0,1.94283251]
[1673039575523,0.27979178,16908.0,16907.0,2.38462846]
[1673039576259,0.27979178,16908.0,16907.0,2.11852404]
[1673039578504,1.08214874,16908.0,16907.0,2.11852404]
[1673039578728,0.27979178,16908.0,16907.0,2.11852404]
[1673039580425,0.27972757,16908.0,16907.0,2.13182639]
[1673039585656,0.27972757,16908.0,16907.0,1.77702701]
[1673039585939,0.27972757,16908.0,16907.0,2.13183947]
[1673039586181,0.27972757,16908.0,16907.0,2.13184304]
[1673039586683,0.27972757,16908.0,16907.0,2.47702701]
[1673039586936,0.27972757,16908.0,16907.0,2.03523106]
[1673039587207,0.10462757,16908.0,16907.0,2.03523106]
[1673039591200,0.10462757,16908.0,16907.0,2.03512011]
[1673039591698,0.10462757,16908.0,16907.0,2.63512011]
[1673039596640,0.10462757,16908.0,16907.0,3.16655107]
[1673039598650,0.10462757,16908.0,16907.0,2.63512011]
[1673039599140,0.10462757,16908.0,16907.0,3.16720315]
[1673039599396,0.10462757,16908.0,16907.0,3.16220315]
[1673039600167,0.10462757,16908.0,16907.0,3.22333334]
[1673039606361,0.10462757,16908.0,16907.0,3.22301539]
[1673039606632,0.10462757,16908.0,16907.0,3.20476106]
[1673039606895,0.10462757,16908.0,16907.0,10.70476106]
[1673039607660,0.10462757,16908.0,16907.0,11.19174511]
[1673039607946,0.10462757,16908.0,16907.0,3.69174511]
[1673039608448,0.00469249,16909.0,16907.0,11.78569278]
[1673039608689,0.00469249,16909.0,16908.0,0.3]
[1673039608939,0.00469249,16909.0,16908.0,2.182872]
[1673039609258,0.00469249,16909.0,16908.0,2.64460383]
[1673039610733,0.00469249,16909.0,16908.0,2.65460383]
[1673039612001,0.00469249,16909.0,16908.0,2.21162114]
[1673039615719,0.00469249,16909.0,16908.0,2.32869813]
[1673039616213,0.00569249,16909.0,16908.0,2.86026199]
[1673039616457,0.00469249,16909.0,16908.0,2.86026199]
[1673039617559,0.00469249,16909.0,16908.0,4.53713267]
[1673039617818,0.00469249,16909.0,16908.0,4.65420966]
[1673039618076,0.00469249,16909.0,16908.0,4.1226458]
[1673039618306,0.00469249,16909.0,16908.0,4.65417681]
[1673039619249,0.00469249,16909.0,16908.0,4.1226458]
[1673039621301,0.00469249,16909.0,16908.0,4.65408673]
[1673039621550,0.00469249,16909.0,16908.0,4.1226458]
[1673039623057,0.0041397,16911.0,16908.0,5.25584543]
[1673039623308,0.0041397,16911.0,16909.0,1.90036006]
[1673039623574,0.0041397,16911.0,16910.0,2.365464]
[1673039623822,0.0041397,16911.0,16910.0,2.68421314]
[1673039624392,0.0039897,16911.0,16910.0,2.68421314]
[1673039624869,0.0039897,16911.0,16910.0,3.13196429]
[1673039625124,0.0039897,16911.0,16910.0,4.18617708]
[1673039629131,1.56530515,16911.0,16910.0,4.00915343]
[1673039629375,1.56530515,16911.0,16910.0,3.13209582]
[1673039629914,1.74040515,16911.0,16910.0,1.779098]
[1673039631918,1.56590515,16911.0,16910.0,2.079098]
[1673039633403,2.17282815,16911.0,16910.0,2.079098]
[1673039633643,2.17282815,16911.0,16910.0,9.579098]
[1673039633893,1.56590515,16911.0,16910.0,9.579098]
[1673039636386,1.56590515,16911.0,16910.0,9.75625318]
[1673039636896,0.97846952,16911.0,16910.0,9.75625318]
[1673039641158,0.97846952,16911.0,16910.0,2.25625318]
[1673039641409,2.21482977,16911.0,16910.0,2.079098]
[1673039642180,1.60790677,16911.0,16910.0,2.079098]
[1673039642696,0.1751,16911.0,16910.0,2.25625318]
[1673039642948,0.1751,16911.0,16910.0,2.27500232]
[1673039644195,0.97349032,16911.0,16910.0,2.27500232]
[1673039646463,0.1751,16911.0,16910.0,2.27500232]